bitfinex/quotes_BTCUSD_20230120
["timestamp","ask_amount","ask_price","bid_price","bid_amount"]
[1674190010388,0.00158281,21043.0,21042.0,0.42399488]
[1674190010945,0.38595865,21043.0,21042.0,0.42399488]
[1674190011197,0.38595865,21043.0,21042.0,0.42379584]
[1674190011723,0.38595865,21043.0,21042.0,0.043]
[1674190011724,0.21413255,21043.0,21042.0,0.043]
[1674190012000,0.58390603,21043.0,21042.0,0.043]
[1674190012261,0.47645513,21043.0,21042.0,0.04280096]
[1674190013047,0.47656603,21043.0,21042.0,0.04280096]
[1674190013298,0.58212045,21043.0,21042.0,0.04280096]
[1674190013567,1.02898898,21043.0,21042.0,0.04280096]
[1674190014084,1.02909988,21043.0,21042.0,0.04280096]
[1674190014366,1.02898898,21043.0,21042.0,0.04280096]
[1674190014851,0.58200955,21043.0,21042.0,0.04280096]
[1674190015119,1.04012427,21043.0,21042.0,0.04280096]
[1674190015635,0.58212045,21043.0,21042.0,0.04280096]
[1674190015891,1.01782946,21043.0,21042.0,0.04280096]
[1674190016746,0.91250946,21043.0,21042.0,0.04280096]
[1674190017633,0.00147255,21043.0,21042.0,0.04280096]
[1674190017852,0.00147255,21043.0,21042.0,0.35076296]
[1674190018567,0.00147255,21043.0,21042.0,0.45076296]
[1674190020880,0.40258083,21043.0,21042.0,0.45076296]
[1674190021549,0.00147255,21043.0,21042.0,0.45076296]
[1674190021728,0.00147255,21043.0,21042.0,0.63150031]
[1674190022967,0.00147255,21043.0,21042.0,0.45076296]
[1674190024181,0.00147255,21043.0,21042.0,0.92418171]
[1674190025180,0.00147255,21043.0,21042.0,0.92236146]
[1674190025423,0.00147255,21043.0,21042.0,1.39760046]
[1674190027374,0.00147255,21043.0,21042.0,1.63178982]
[1674190028125,0.00147255,21043.0,21042.0,2.08448982]
[1674190028371,0.00147255,21043.0,21042.0,1.85880046]
[1674190028861,0.00147255,21043.0,21042.0,2.0813469]
[1674190029107,0.00147255,21043.0,21042.0,1.85564]
[1674190029355,0.00147255,21043.0,21042.0,1.94464]
[1674190029644,0.00147255,21043.0,21042.0,2.18274616]
[1674190029891,0.00147255,21043.0,21042.0,1.94464]
[1674190030139,0.00147255,21043.0,21042.0,2.15582701]
[1674190030398,0.00147255,21043.0,21042.0,1.85564]
[1674190030882,0.00147255,21043.0,21042.0,2.1244801]
[1674190031136,0.00147255,21043.0,21042.0,1.8244801]
[1674190031966,0.00147255,21043.0,21042.0,2.1244801]
[1674190032186,0.00147255,21043.0,21042.0,2.11644462]
[1674190032452,0.00147255,21043.0,21042.0,1.94464]
[1674190033235,0.00147255,21043.0,21042.0,2.12373183]
[1674190033519,0.00147255,21043.0,21042.0,1.82373183]
[1674190034033,0.00147255,21043.0,21042.0,2.12373183]
[1674190034300,0.00147255,21043.0,21042.0,2.1694592]
[1674190034570,0.00147255,21043.0,21042.0,2.12258211]
[1674190034821,0.00147255,21043.0,21042.0,1.94464]
[1674190035345,0.00147255,21043.0,21042.0,2.8949237]
[1674190036391,0.00147255,21043.0,21042.0,3.00876794]
[1674190036649,0.00147255,21043.0,21042.0,2.8949237]
[1674190036910,0.00147255,21043.0,21042.0,3.00876794]
[1674190037695,0.00147255,21043.0,21042.0,3.66930152]
[1674190037954,0.00147255,21043.0,21042.0,3.89699]
[1674190038226,2.55e-06,21043.0,21042.0,3.78254289]
[1674190038523,2.55e-06,21043.0,21042.0,4.01063532]
[1674190038772,2.55e-06,21043.0,21042.0,3.72602471]
[1674190039553,2.55e-06,21043.0,21042.0,4.01063532]
[1674190039860,1.133e-05,21044.0,21042.0,5.04974853]
[1674190040107,0.38159269,21050.0,21043.0,2.2417041]
[1674190040342,0.38159269,21050.0,21045.0,2.28474102]
[1674190040602,0.001617,21052.0,21049.0,0.0766]
[1674190040862,0.46567859,21051.0,21050.0,0.97721897]
[1674190041404,0.46567859,21051.0,21050.0,0.782898]
[1674190042451,0.39542403,21051.0,21050.0,0.782898]
[1674190042696,0.11773752,21051.0,21050.0,0.399839]
[1674190042968,0.93730909,21051.0,21050.0,0.092]
[1674190043230,0.93730909,21051.0,21050.0,0.128]
[1674190043493,1.26090809,21051.0,21050.0,0.128]
[1674190043853,0.93730909,21051.0,21050.0,0.128]
[1674190044068,1.41234509,21051.0,21050.0,0.128]
[1674190044330,1.41234509,21051.0,21050.0,0.12747306]
[1674190044593,0.00052694,21049.0,21046.0,0.575127]
[1674190044865,0.11815356,21049.0,21047.0,0.1]
[1674190045125,0.00052694,21049.0,21047.0,0.30670216]
[1674190045405,0.3618896,21049.0,21047.0,0.30670216]
[1674190046464,0.3708896,21049.0,21047.0,0.30670216]
[1674190046690,0.3618896,21049.0,21047.0,0.30670216]
[1674190046939,0.3708896,21049.0,21047.0,0.30670216]
[1674190047171,0.3618896,21049.0,21047.0,0.30670216]
[1674190047429,0.00952694,21049.0,21048.0,0.22928115]
[1674190047729,0.00052694,21049.0,21048.0,0.22928115]
[1674190047933,0.01052694,21049.0,21048.0,0.85758515]
[1674190048232,0.00052694,21049.0,21048.0,1.6437534]
[1674190048480,0.00352694,21049.0,21048.0,1.6437534]
[1674190051864,0.00352694,21049.0,21048.0,1.6522534]
[1674190052352,0.00352694,21049.0,21048.0,1.9522534]
[1674190052600,0.00352694,21049.0,21048.0,1.9882534]
[1674190053617,0.00352694,21049.0,21048.0,1.759119]
[1674190053884,0.00352694,21049.0,21048.0,1.96029694]
[1674190055100,0.00352694,21049.0,21048.0,1.68899092]
[1674190055374,0.00352694,21049.0,21048.0,1.61239092]
[1674190058463,0.00352694,21049.0,21048.0,1.382519]
[1674190058713,0.47209544,21049.0,21048.0,1.305919]
[1674190059249,0.47209544,21049.0,21048.0,1.30432572]
[1674190060274,0.47209544,21049.0,21048.0,1.30273265]
[1674190061278,0.47220634,21049.0,21048.0,0.34561793]
[1674190061546,0.47209544,21049.0,21048.0,0.34561793]
[1674190061846,0.47209544,21049.0,21048.0,0.036]
[1674190062319,0.47220634,21049.0,21048.0,0.03519432]
[1674190062572,0.47209544,21049.0,21048.0,0.03519432]
[1674190063374,0.47209544,21049.0,21048.0,0.03360278]
[1674190064405,0.47209544,21049.0,21048.0,0.03201124]
[1674190064683,0.00352694,21049.0,21048.0,0.34536024]
[1674190064932,0.00352694,21049.0,21048.0,0.64198998]
[1674190065197,0.00352694,21049.0,21048.0,0.42196024]
[1674190065458,0.00352694,21049.0,21048.0,0.89706424]
[1674190065746,0.00352694,21049.0,21048.0,0.99706424]
[1674190066004,0.00352694,21049.0,21048.0,1.19603894]
[1674190066247,0.00352694,21049.0,21048.0,1.19365746]
[1674190066506,0.00352694,21049.0,21048.0,1.66876146]
[1674190066765,0.00352694,21049.0,21048.0,1.67726146]
[1674190067287,0.00352694,21049.0,21048.0,1.97726146]
[1674190067848,0.00352694,21049.0,21048.0,2.74100498]
[1674190068113,0.00352694,21049.0,21048.0,1.67726146]
[1674190068377,0.00352694,21049.0,21048.0,1.97726146]
[1674190068642,0.00352694,21049.0,21048.0,1.67726146]
[1674190069175,0.00352694,21049.0,21048.0,1.67567153]
[1674190070406,0.00352694,21049.0,21048.0,1.9740816]
[1674190071001,0.00352694,21049.0,21048.0,3.06005331]
[1674190071231,0.00352694,21049.0,21048.0,3.40650747]
[1674190071498,0.00352694,21049.0,21048.0,3.17766552]
[1674190071761,0.00352694,21049.0,21048.0,3.40511751]
[1674190072318,0.00352694,21049.0,21048.0,3.17790759]
[1674190072627,0.00352694,21049.0,21048.0,3.17787395]
[1674190072884,0.00352694,21049.0,21048.0,2.89360051]
[1674190073143,0.00352694,21049.0,21048.0,3.40530123]
[1674190073407,0.00352694,21049.0,21048.0,2.89360051]
[1674190073710,0.00052694,21049.0,21048.0,3.24110051]
[1674190073954,0.00852694,21049.0,21048.0,3.53237316]
[1674190074503,0.00852694,21049.0,21048.0,3.81268753]
[1674190074761,0.00052694,21049.0,21048.0,3.24110051]
[1674190075032,0.00852694,21049.0,21048.0,3.24810051]
[1674190076145,0.008,21049.0,21048.0,3.18480255]
[1674190076631,0.008,21049.0,21048.0,2.90060051]
[1674190077424,0.008,21049.0,21048.0,3.18475865]
[1674190079292,0.008,21049.0,21048.0,2.90060051]
[1674190080635,0.008,21049.0,21048.0,3.18462885]
[1674190081148,0.008,21049.0,21048.0,3.41185483]
[1674190082196,0.008,21049.0,21048.0,3.33425962]
[1674190082461,0.008,21049.0,21048.0,3.10702584]
[1674190082719,0.008,21049.0,21048.0,3.39956385]
[1674190083220,0.008,21049.0,21048.0,1.85991961]
[1674190083236,0.008,21049.0,21048.0,3.09524825]
[1674190083478,0.008,21049.0,21048.0,2.98037927]
[1674190083738,0.008,21049.0,21048.0,2.80995394]
[1674190084833,0.008,21049.0,21048.0,3.10995394]
[1674190085092,0.008,21049.0,21048.0,3.28037927]
[1674190086198,0.008,21049.0,21048.0,2.80995394]
[1674190086421,0.008,21049.0,21048.0,2.73335394]
[1674190087442,0.008,21049.0,21048.0,2.74081556]
[1674190087705,0.008,21049.0,21048.0,3.13946466]
[1674190088284,0.008,21049.0,21048.0,3.23063967]
[1674190088539,0.008,21049.0,21048.0,3.34426913]
[1674190088803,0.008,21049.0,21048.0,3.31084496]
[1674190089065,0.008,21049.0,21048.0,3.13950838]
[1674190089323,0.008,21049.0,21048.0,3.02587892]
[1674190089613,0.008,21049.0,21048.0,3.36672542]
[1674190090159,0.008,21049.0,21048.0,3.60244062]
[1674190090411,0.008,21049.0,21048.0,3.26159604]
[1674190090637,0.008,21049.0,21048.0,3.30845199]
[1674190090912,0.008,21049.0,21048.0,3.47890597]
[1674190091254,0.008,21049.0,21048.0,1.64033651]
[1674190091733,0.008,21049.0,21048.0,1.32746291]
[1674190092286,0.008,21049.0,21048.0,1.64453791]
[1674190092566,0.00793466,21049.0,21048.0,1.64453791]
[1674190093860,0.00793466,21049.0,21048.0,3.00823188]
[1674190094139,0.00793466,21049.0,21048.0,1.94453791]
[1674190094398,0.00793466,21049.0,21048.0,1.64453791]
[1674190094659,0.00793466,21049.0,21048.0,2.70822118]
[1674190095450,0.00793466,21049.0,21048.0,3.00822118]
[1674190095708,0.00793466,21049.0,21048.0,1.94453791]
[1674190096576,0.00793466,21049.0,21048.0,1.64453791]
[1674190097919,0.00793466,21049.0,21048.0,1.75817661]
[1674190098189,0.00793466,21049.0,21048.0,1.64453791]
[1674190098896,0.00793466,21049.0,21048.0,2.70823813]
[1674190099159,0.00793466,21049.0,21048.0,1.64453791]
[1674190099680,0.00804556,21049.0,21048.0,1.64453791]
[1674190099936,0.00793466,21049.0,21048.0,1.64453791]
[1674190100484,0.00793466,21049.0,21048.0,1.32746291]
[1674190101909,0.00793466,21049.0,21048.0,1.64453791]
[1674190102437,0.00793466,21049.0,21048.0,1.32746291]
[1674190102758,0.00793466,21049.0,21048.0,2.39119742]
[1674190103011,0.00793466,21049.0,21048.0,2.70827242]
[1674190103532,0.00793466,21049.0,21048.0,2.95334167]
[1674190103797,0.00793466,21049.0,21048.0,3.1806143]
[1674190104053,0.00793466,21049.0,21048.0,3.39551472]
[1674190104311,0.00793466,21049.0,21048.0,3.1806143]
[1674190104583,0.00793466,21049.0,21048.0,3.49345956]
[1674190104840,0.00793466,21049.0,21048.0,3.20943122]
[1674190105110,0.00793466,21049.0,21048.0,3.18077619]
[1674190105667,0.00793466,21049.0,21048.0,2.95350356]
[1674190105905,0.00793466,21049.0,21048.0,3.40705909]
[1674190106434,0.00793466,21049.0,21048.0,3.01016032]
[1674190106652,0.00793466,21049.0,21048.0,3.46363913]
[1674190107991,4.66e-06,21049.0,21048.0,3.37028866]
[1674190108257,0.001617,21052.0,21049.0,0.0008702]
[1674190108512,0.001617,21052.0,21051.0,0.28440131]
[1674190108766,0.001617,21052.0,21051.0,3.01560423]
[1674190109120,0.001617,21052.0,21051.0,2.72410439]
[1674190109294,0.001617,21052.0,21051.0,2.76010439]
[1674190109574,0.001617,21052.0,21051.0,2.47545472]
[1674190109826,0.001617,21052.0,21051.0,2.64609551]
[1674190110092,0.001617,21052.0,21051.0,2.7599891]
[1674190110371,0.001617,21052.0,21051.0,2.75946315]
[1674190111179,0.001617,21052.0,21051.0,2.87184835]
[1674190111432,0.001617,21052.0,21051.0,2.70120756]
[1674190112518,0.001617,21052.0,21051.0,3.00120756]
[1674190112786,0.009617,21052.0,21051.0,3.00120756]
[1674190113589,0.001617,21052.0,21051.0,3.40014947]
[1674190113863,0.003617,21052.0,21051.0,3.23650868]
[1674190114594,0.003617,21052.0,21051.0,3.29337288]
[1674190114849,0.003617,21052.0,21051.0,3.06709409]
[1674190115106,0.003617,21052.0,21051.0,2.95333999]
[1674190115365,0.003617,21052.0,21051.0,3.24833696]
[1674190115667,0.003617,21052.0,21051.0,3.1792087]
[1674190115882,0.003617,21052.0,21051.0,3.2946312]
[1674190116133,0.003617,21052.0,21051.0,3.18339337]
[1674190116389,0.003617,21052.0,21051.0,3.35401077]
[1674190116664,0.003617,21052.0,21051.0,3.12648972]
[1674190116984,0.003617,21052.0,21051.0,3.18084729]
[1674190117207,0.003617,21052.0,21051.0,2.95332624]
[1674190117489,0.003617,21052.0,21051.0,3.36494445]
[1674190117757,0.003617,21052.0,21051.0,3.27983655]
[1674190118017,0.003617,21052.0,21051.0,3.5073187]
[1674190118863,0.003617,21052.0,21051.0,3.22484162]
[1674190119123,0.003617,21052.0,21051.0,3.50924293]
[1674190119929,0.003617,21052.0,21051.0,3.06903438]
[1674190120210,0.003617,21052.0,21051.0,3.66168289]
[1674190120481,0.003617,21052.0,21051.0,3.37728158]
[1674190120752,0.003617,21052.0,21051.0,3.49111375]
[1674190121314,0.003617,21052.0,21051.0,3.3772874]
[1674190121577,0.003617,21052.0,21051.0,3.18263355]
[1674190123163,0.003617,21052.0,21051.0,3.172875]
[1674190123451,0.003617,21052.0,21051.0,3.40030052]
[1674190123756,0.003617,21052.0,21051.0,1.63766025]
[1674190124751,0.49663772,21052.0,21051.0,0.93453305]
[1674190125057,0.3789002,21052.0,21051.0,0.14247405]
[1674190125333,0.3789002,21052.0,21051.0,0.45949505]
[1674190125595,0.3789002,21052.0,21051.0,0.14247405]
[1674190128286,0.3789002,21052.0,21051.0,0.14257025]
[1674190128807,0.3789002,21052.0,21051.0,0.14247405]
[1674190129371,0.3789002,21052.0,21051.0,0.14257025]
[1674190132646,0.63645538,21052.0,21051.0,0.14247405]
[1674190132907,1.50015038,21052.0,21051.0,0.043]
[1674190133454,1.50003948,21052.0,21051.0,0.043]
[1674190133751,1.50015038,21052.0,21051.0,0.043]
[1674190134275,1.50015038,21052.0,21051.0,0.04247387]
[1674190135058,1.18746938,21052.0,21051.0,0.04247387]
[1674190135318,0.7479319,21052.0,21051.0,0.04194859]
[1674190135820,1.15127369,21052.0,21051.0,0.04194859]
[1674190136075,1.49056462,21052.0,21051.0,0.04194859]
[1674190136347,1.17943562,21052.0,21051.0,0.04142486]
[1674190136603,0.7479319,21052.0,21051.0,0.04142486]
[1674190136870,1.13094133,21052.0,21051.0,0.04142486]
[1674190137133,1.46924233,21052.0,21051.0,0.04142486]
[1674190137399,1.46924233,21052.0,21051.0,0.03965058]
[1674190137641,1.13094133,21052.0,21051.0,0.03965058]
[1674190137899,1.07967249,21052.0,21051.0,0.03965058]
[1674190138200,1.5371949,21052.0,21051.0,0.0378763]
[1674190139495,1.2229459,21052.0,21051.0,0.0378763]
[1674190139700,1.65452246,21052.0,21051.0,0.0378763]
[1674190140245,1.55703246,21052.0,21051.0,0.0378763]
[1674190140756,1.125345,21052.0,21051.0,0.0378763]
[1674190141012,1.53933944,21052.0,21051.0,0.0378763]
[1674190142667,1.46333944,21052.0,21051.0,0.0378763]
[1674190143155,1.46345034,21052.0,21051.0,0.0378763]
[1674190144689,1.36763944,21052.0,21051.0,0.0379725]
[1674190145231,1.36763944,21052.0,21051.0,0.0378763]
[1674190145464,0.41761144,21052.0,21051.0,0.0378763]
[1674190147549,0.41772234,21052.0,21051.0,0.0378763]
[1674190147817,0.41761144,21052.0,21051.0,0.0378763]
[1674190149673,0.41761144,21052.0,21051.0,0.4484473]
[1674190149943,0.41761144,21052.0,21051.0,0.4548973]
[1674190151014,0.003617,21052.0,21051.0,0.4548973]
[1674190151326,0.003617,21052.0,21051.0,0.68745513]
[1674190151589,0.003617,21052.0,21051.0,1.63752713]
[1674190151865,0.003617,21052.0,21051.0,1.64602713]
[1674190152137,0.003617,21052.0,21051.0,1.94602713]
[1674190152392,0.003617,21052.0,21051.0,3.00965335]
[1674190152925,0.003617,21052.0,21051.0,3.24657436]
[1674190153194,0.00325531,21052.0,21051.0,3.01900821]
[1674190153453,0.00325531,21052.0,21051.0,3.132632]
[1674190153711,0.00325531,21052.0,21051.0,3.71473373]
[1674190154011,0.00325531,21052.0,21051.0,3.48730821]
[1674190154286,0.00125531,21052.0,21051.0,3.21173127]
[1674190154559,0.00825531,21052.0,21051.0,3.23072908]
[1674190154839,0.00125531,21052.0,21051.0,3.21172908]
[1674190155101,0.00825531,21052.0,21051.0,2.28081807]
[1674190155581,0.00825531,21052.0,21051.0,3.50565662]
[1674190155583,0.00825531,21052.0,21051.0,3.42432435]
[1674190155853,0.00825531,21052.0,21051.0,3.25389261]
[1674190156096,0.00825531,21052.0,21051.0,2.30398114]
[1674190156354,0.00825531,21052.0,21051.0,3.33521513]
[1674190156649,0.00825531,21052.0,21051.0,3.33522122]
[1674190156890,0.00825531,21052.0,21051.0,2.57226566]
[1674190157152,0.00825531,21052.0,21051.0,2.27226566]
[1674190157428,0.00825531,21052.0,21051.0,2.15865438]
[1674190158217,0.00825531,21052.0,21051.0,3.22217361]
[1674190158509,0.00825531,21052.0,21051.0,2.4498168]
[1674190158762,0.00825531,21052.0,21051.0,3.61073971]
[1674190159023,0.00825531,21052.0,21051.0,3.49712843]
[1674190159562,0.00825531,21052.0,21051.0,3.72455395]
[1674190159839,0.00825531,21052.0,21051.0,3.6639916]
[1674190160096,0.00825531,21052.0,21051.0,3.79500632]
[1674190160367,0.00825531,21052.0,21051.0,3.38992801]
[1674190160623,0.00825531,21052.0,21051.0,2.19348002]
[1674190160888,0.00825531,21052.0,21051.0,2.07985686]
[1674190161166,0.00825531,21052.0,21051.0,2.19348002]
[1674190161736,0.00825531,21052.0,21051.0,2.07985686]
[1674190163346,0.00825531,21052.0,21051.0,2.37985686]
[1674190163601,0.00825531,21052.0,21051.0,2.07985686]
[1674190163858,0.00825531,21052.0,21051.0,3.14339357]
[1674190164109,0.00825531,21052.0,21051.0,2.19348002]
[1674190164361,0.00825531,21052.0,21051.0,2.07985686]
[1674190165173,0.00825531,21052.0,21051.0,3.14339893]
[1674190165391,0.00825531,21052.0,21051.0,2.9591442]
[1674190165647,0.00825531,21052.0,21051.0,3.5356763]
[1674190165908,0.00825531,21052.0,21051.0,3.59704423]
[1674190166428,0.00825531,21052.0,21051.0,3.4266099]
[1674190166659,0.00825531,21052.0,21051.0,2.17669099]
[1674190166923,0.00825531,21052.0,21051.0,3.12660278]
[1674190167434,0.00825531,21052.0,21051.0,2.06306783]
[1674190168465,0.00825531,21052.0,21051.0,2.17669099]
[1674190168716,0.00825531,21052.0,21051.0,3.12659355]
[1674190169816,0.00825531,21052.0,21051.0,2.06306783]
[1674190170021,0.00825531,21052.0,21051.0,2.36306783]
[1674190170296,0.00825531,21052.0,21051.0,3.25913467]
[1674190170545,0.00825531,21052.0,21051.0,3.49297024]
[1674190170812,0.00825531,21052.0,21051.0,3.19295791]
[1674190171574,0.00825531,21052.0,21051.0,2.24304853]
[1674190171808,0.00825531,21052.0,21051.0,2.1294377]
[1674190175325,0.00825531,21052.0,21051.0,3.19296719]
[1674190175553,0.00825531,21052.0,21051.0,2.1294377]
[1674190176059,0.00125531,21052.0,21051.0,2.22404853]
[1674190176307,0.00825531,21052.0,21051.0,3.19096839]
[1674190176827,0.00817116,21052.0,21051.0,3.19096839]
[1674190177097,0.00817116,21052.0,21051.0,2.1274377]
[1674190177426,0.00117116,21052.0,21051.0,2.1104377]
[1674190177614,0.00817116,21052.0,21051.0,2.1274377]
[1674190178418,0.00817116,21052.0,21051.0,2.1189377]
[1674190179449,0.00817116,21052.0,21051.0,1.4149693]
[1674190179701,0.00817116,21052.0,21051.0,1.0979483]
[1674190180221,0.38658349,21052.0,21051.0,1.0979483]
[1674190180478,0.38658349,21052.0,21051.0,0.6229123]
[1674190183031,0.38658349,21052.0,21051.0,0.62483653]
[1674190184081,0.38658349,21052.0,21051.0,0.0478763]
[1674190184082,0.38669439,21052.0,21051.0,0.0478763]
[1674190184351,0.38658349,21052.0,21051.0,0.0478763]
[1674190185975,0.38658349,21052.0,21051.0,0.1478763]
[1674190187550,0.00817116,21052.0,21051.0,0.4648973]
[1674190187890,0.00817116,21052.0,21051.0,0.4649935]
[1674190188097,0.00817116,21052.0,21051.0,1.09795415]
[1674190188371,0.00817116,21052.0,21051.0,1.41497515]
[1674190188886,0.00817116,21052.0,21051.0,1.60700355]
[1674190189151,0.00817116,21052.0,21051.0,1.99598335]
[1674190189407,0.00817116,21052.0,21051.0,2.10979804]
[1674190189673,0.00817116,21052.0,21051.0,1.93936371]
[1674190189935,0.00817116,21052.0,21051.0,2.22376502]
[1674190190195,0.00817116,21052.0,21051.0,2.52376502]
[1674190190478,0.00817116,21052.0,21051.0,2.88943571]
[1674190190710,0.00817116,21052.0,21051.0,3.18233702]
[1674190190987,0.00817116,21052.0,21051.0,2.89793571]
[1674190191236,0.00817116,21052.0,21051.0,3.18233702]
[1674190191494,0.00817116,21052.0,21051.0,2.89793571]
[1674190192019,0.00817116,21052.0,21051.0,3.06868599]
[1674190192298,0.00817116,21052.0,21051.0,2.84126629]
[1674190192553,0.00817116,21052.0,21051.0,2.9551064]
[1674190192815,0.00817116,21052.0,21051.0,3.06869181]
[1674190193150,0.00817116,21052.0,21051.0,2.95510654]
[1674190193336,0.00817116,21052.0,21051.0,2.95510637]
[1674190194124,0.00817116,21052.0,21051.0,2.84126629]
[1674190194915,0.00817116,21052.0,21051.0,2.95511946]
[1674190195700,0.00817116,21052.0,21051.0,2.85018582]
[1674190196239,0.00817116,21052.0,21051.0,2.67942972]
[1674190196509,0.00817116,21052.0,21051.0,2.67092972]
[1674190197042,0.00809364,21052.0,21051.0,2.84168582]
[1674190197295,0.00809364,21052.0,21051.0,2.67092972]
[1674190197586,0.00820454,21052.0,21051.0,1.4149693]
[1674190197853,0.40943312,21052.0,21051.0,1.0979483]
[1674190199434,0.40943312,21052.0,21051.0,1.09742352]
[1674190199960,0.40943312,21052.0,21051.0,2.04741427]
[1674190200265,0.40943312,21052.0,21051.0,1.41444452]
[1674190200527,0.40943312,21052.0,21051.0,0.62186274]
[1674190201237,0.40943312,21052.0,21051.0,1.57195494]
[1674190201527,0.00809364,21052.0,21051.0,1.99745834]
[1674190201768,0.00809364,21052.0,21051.0,1.99736214]
[1674190202277,0.00809364,21052.0,21051.0,1.68528434]
[1674190202536,0.00809364,21052.0,21051.0,1.57090539]
[1674190203336,0.00809364,21052.0,21051.0,0.62038461]
[1674190203616,0.00809364,21052.0,21051.0,0.62028841]
[1674190204410,0.00809364,21052.0,21051.0,1.56976052]
[1674190204663,0.00809364,21052.0,21051.0,1.88687772]
[1674190205449,0.00809364,21052.0,21051.0,0.93625985]
[1674190205711,0.00809364,21052.0,21051.0,0.61923885]
[1674190206250,0.00809364,21052.0,21051.0,1.86113435]
[1674190206515,0.00809364,21052.0,21051.0,2.17815535]
[1674190206772,0.00809364,21052.0,21051.0,3.04355237]
[1674190207041,0.00809364,21052.0,21051.0,3.15555237]
[1674190207296,0.00809364,21052.0,21051.0,3.1552792]
[1674190207625,0.00809364,21052.0,21051.0,2.92785368]
[1674190207886,0.00809364,21052.0,21051.0,3.1552792]
[1674190208157,0.00809364,21052.0,21051.0,2.92785368]
[1674190208676,0.00809364,21052.0,21051.0,2.92757955]
[1674190209158,0.00809364,21052.0,21051.0,2.93549404]
[1674190209689,0.00809364,21052.0,21051.0,2.92740741]
[1674190210238,0.00809364,21052.0,21051.0,3.04126075]
[1674190210756,0.00809364,21052.0,21051.0,2.92713622]
[1674190211018,0.00809364,21052.0,21051.0,3.26820695]
[1674190211540,0.00809364,21052.0,21051.0,3.26793576]
[1674190211800,0.00809364,21052.0,21051.0,3.27643576]
[1674190213385,0.00809364,21052.0,21051.0,2.93538447]
[1674190213639,0.00809364,21052.0,21051.0,3.16280999]
[1674190213898,0.00809364,21052.0,21051.0,2.93538447]
[1674190215184,0.00809364,21052.0,21051.0,3.27643576]
[1674190216023,0.00809364,21052.0,21051.0,3.16280334]
[1674190216282,0.00809364,21052.0,21051.0,3.05080334]
[1674190217349,0.00809364,21052.0,21051.0,3.35080411]
[1674190217566,0.00809364,21052.0,21051.0,3.05080411]
[1674190217826,0.00809364,21052.0,21051.0,3.16443576]
[1674190218626,0.00809364,21052.0,21051.0,3.35079176]
[1674190218885,0.00809364,21052.0,21051.0,3.05079176]
[1674190219428,0.00809364,21052.0,21051.0,3.35079176]
[1674190219927,0.00809364,21052.0,21051.0,3.05079176]
[1674190220998,0.00809364,21052.0,21051.0,3.16443576]
[1674190222817,0.00809364,21052.0,21051.0,2.8233684]
[1674190223085,0.00809364,21052.0,21051.0,2.93720886]
[1674190223355,0.00809364,21052.0,21051.0,2.8233684]
[1674190224176,0.00809364,21052.0,21051.0,2.93646327]
[1674190224895,0.00809364,21052.0,21051.0,2.9364628]
[1674190225429,0.00809364,21052.0,21051.0,2.82261805]
[1674190225678,0.00809364,21052.0,21051.0,3.05004357]
[1674190226717,0.00809364,21052.0,21051.0,2.82261805]
[1674190227332,0.00809364,21052.0,21051.0,2.83117783]
[1674190227872,0.00809364,21052.0,21051.0,2.93635275]
[1674190229129,0.00809364,21052.0,21051.0,2.87917001]
[1674190229386,0.00809364,21052.0,21051.0,2.9361458]
[1674190229640,0.00809364,21052.0,21051.0,2.4611098]
[1674190229945,0.00809364,21052.0,21051.0,2.68879077]
[1674190230163,0.00809364,21052.0,21051.0,3.39815044]
[1674190230431,0.00809364,21052.0,21051.0,3.08005456]
[1674190231170,0.00809364,21052.0,21051.0,3.36464637]
[1674190231395,0.00809364,21052.0,21051.0,3.08005456]
[1674190232194,0.00809364,21052.0,21051.0,3.36459957]
[1674190232986,0.00809364,21052.0,21051.0,3.08005456]
[1674190233229,0.00809364,21052.0,21051.0,3.36459715]
[1674190233491,0.00809364,21052.0,21051.0,3.62294793]
[1674190234278,0.00809364,21052.0,21051.0,3.39530944]
[1674190235585,0.00809364,21052.0,21051.0,3.11076685]
[1674190236359,0.00802528,21052.0,21051.0,3.39526016]
[1674190236578,0.00802528,21052.0,21051.0,3.62286005]
[1674190238959,0.00802528,21052.0,21051.0,3.39526016]
[1674190239490,0.00802528,21052.0,21051.0,3.62288276]
[1674190239776,0.00802528,21052.0,21051.0,3.39526016]
[1674190240886,0.00802528,21052.0,21051.0,3.32290108]
[1674190241149,0.00802528,21052.0,21051.0,3.32290216]
[1674190241671,0.00802528,21052.0,21051.0,3.20914297]
[1674190241923,0.00802528,21052.0,21051.0,3.32290216]
[1674190242660,0.00802528,21052.0,21051.0,3.09526016]
[1674190243464,0.00802528,21052.0,21051.0,3.39526016]
[1674190243955,0.00802528,21052.0,21051.0,2.81076685]
[1674190244252,0.00802528,21052.0,21051.0,3.11076685]
[1674190244488,0.00802528,21052.0,21051.0,3.32306562]
[1674190245040,0.00802528,21052.0,21051.0,3.0384557]
[1674190245291,0.00802528,21052.0,21051.0,3.0963254]
[1674190245568,0.00802528,21052.0,21051.0,2.9255557]
[1674190245797,0.00802528,21052.0,21051.0,3.21016562]
[1674190246044,0.00802528,21052.0,21051.0,2.9255557]
[1674190246314,0.00802528,21052.0,21051.0,3.21016562]
[1674190247016,0.00802528,21052.0,21051.0,2.98247677]
[1674190247542,0.00802528,21052.0,21051.0,3.21022123]
[1674190247785,0.00802528,21052.0,21051.0,2.98247677]
[1674190248070,0.00802528,21052.0,21051.0,3.2102275]
[1674190248309,0.00802528,21052.0,21051.0,2.92561758]
[1674190249867,0.00802528,21052.0,21051.0,2.98247677]
[1674190251415,0.00802528,21052.0,21051.0,3.21024268]
[1674190252238,0.00802528,21052.0,21051.0,2.98247677]
[1674190252510,0.00802528,21052.0,21051.0,2.69786685]
[1674190252778,0.00802528,21052.0,21051.0,2.99786685]
[1674190254804,0.00802528,21052.0,21051.0,3.29786685]
[1674190255288,0.00722276,21052.0,21051.0,3.50530775]
[1674190255547,0.00722276,21052.0,21051.0,3.54884135]
[1674190255774,0.00722276,21052.0,21051.0,3.7652428]
[1674190256097,0.00722276,21052.0,21051.0,3.34140045]
[1674190256380,0.00722276,21052.0,21051.0,3.56750073]
[1674190256876,0.00722276,21052.0,21051.0,3.34140045]
[1674190257360,0.00722276,21052.0,21051.0,3.89067597]
[1674190257897,0.00722276,21052.0,21051.0,3.10388045]
[1674190258392,0.00722276,21052.0,21051.0,3.27909879]
[1674190259788,0.00722276,21052.0,21051.0,3.10388045]
[1674190260315,0.00722276,21052.0,21051.0,3.31856647]
[1674190261121,0.00722276,21052.0,21051.0,3.56774506]
[1674190261379,0.00722276,21052.0,21051.0,3.01856647]
[1674190261903,0.00722276,21052.0,21051.0,3.10385246]
[1674190262430,0.00722276,21052.0,21051.0,3.31928366]
[1674190262682,0.00722276,21052.0,21051.0,3.4171184]
[1674190263218,0.00722276,21052.0,21051.0,3.21615246]
[1674190263929,0.00722276,21052.0,21051.0,3.65648134]
[1674190263931,0.00722276,21052.0,21051.0,3.99800778]
[1674190264210,0.00722276,21052.0,21051.0,3.76531805]